{"text_format":"1","workbook":"xlsx","n_sheets":10,"sheets":["INDICE","SIMULATORE COSTI","ARREDO PER TAPPETO DIGITALE","ROBOTICA EDUCATIVA","FABLAB","ELETTRONICA EDUCATIVA","STEM","ICT TAPPETO DIGITALE","STORYTELLING","ARTE E CREATIVITA"],"not_rendered":{"charts":0,"images":2,"macros":1,"external_links":0,"defined_names":1,"comments":0,"pivot_tables":0},"unopened":[],"bounds":{"document_bytes":16777216,"sheet_cells":100000,"rows_first":2000,"rows_last":500,"rows_between":2000,"halvings":0,"cell_chars":16384,"cell_head_chars":4096},"cells_cut":0,"cells_raw":0,"read":"whole","date_system":"1900"}

{"sheet":"INDICE","index":0,"n_rows":17,"n_cols":3,"rows_kept":17,"cut":false,"hidden":false,"merged":[]}
[]
[null,"Link al catalogo: \nhttp://catalogo.siadsrl.net/"]
[null,"SEDE LEGALE, AMMINISTRATIVA ED OPERATIVA: Via G. B. Vico, 7 – 71016 San Severo (FG)\nSEDE OPERATIVA: Viale A. Masini, 58 - 40126 Bologna"]
[null,"Tel: +39 0882334890 fax 0882334892  www.siadsrl.net\nPresenti sul MEPA"]
[null,"ATELIER CREATIVI\nElenco completo prodotti "]
[null,"Rev 1.0"]
[null,"-  I  N  D  I  C  E  -"]
[]
[null,"SIMULATORE COSTI","Comodo simulatore che vi consentirà, una volta inserite le quantità in ciascuna scheda, di ottenere velocemente un elenco completo della soluzione con i relativi costi"]
[null,"ARREDO PER TAPPETO DIGITALE"]
[null,"ROBOTICA EDUCATIVA"]
[null,"FABLAB"]
[null,"ELETTRONICA EDUCATIVA"]
[null,"STEM"]
[null,"ICT PER IL TAPPETO DIGITALE (LIM, SCHERMI, PC, NOTEBOOK, ACCESS POINT, ECC)"]
[null,"STORYTELLING"]
[null,"ARTE E CREATIVITA' (LEGNO, CERAMICA, CUCINA)"]

{"sheet":"SIMULATORE COSTI","index":1,"n_rows":80,"n_cols":10,"rows_kept":80,"cut":false,"hidden":false,"merged":[[0,0,0,4],[8,0,8,4],[0,7,0,9],[9,0,9,4]]}
[null,null,null,null,null,null,null,"Questo simulatore rappresenta un comodo prospetto sintetico per verificare i costi del proprio Atelier. E' sufficiente inserire nelle varie aree dei prodotti le quantità desiderate e si otterrà il totale aggiornato della lista di apparecchiature, cliccando sul tasto a sinistra \"APPLICA FILTRO SCELTE\""]
[null,null,null,null,null,null,null,"Voci di Costo","Percentuale","Importo previsto"]
[null,null,null,null,null,null,null,"A. Progettazione (max 2%)",0.02,{"$f":"15000*I3","v":300}]
[null,null,null,null,null,null,null,"B. Spese organizzative e di gestione (max 2%)",0.02,{"$f":"15000*I4","v":300}]
[null,null,null,null,null,null,null,"Totale Spese Generali",{"$f":"SUM(I3:I4)","v":0.04},{"$f":"SUM(J3:J4)","v":600}]
[null,null,null,null,null,null,null,"TOTALE FORNITURA \nC. Acquisti di beni e forniture (96%)",0.96,{"$f":"E80","v":0}]
[null,null,null,null,null,null,null,"Controlli di I Livello in loco",null,0]
[null,null,null,null,null,null,null,"Totale Progetto",{"$f":"SUM(I5:I6)","v":1},{"$f":"SUM(J5:J6)","v":600}]
["PROGETTO ATELIER CREATIVI\nPrezzi IVA 22% inclusa"]
["VOCI DI COSTO DELLA CONFIGURAZIONE"]
["Tipologia","Descrizione","Qtà","Costo Unitario IVA inclusa","Costo Totale IVA inclusa"]
["Arredo per Tappeto digitale","Tavolo ribaltabile aggregabile dim 140x70x72. Struttura portante interamente in acciaio, su 4 ruote con freno. Piano spessore 25 mm con bordo in ABS 2 mm arrotondato su tutti gli angoli con raggio 45 mm. Prodotto  italiano di azienda certificata ISO 9001:2008",{"$f":"'ARREDO PER TAPPETO DIGITALE'!D6","v":0},403.82,{"$f":"D12*C12","v":0}]
["Arredo per Tappeto digitale","Tavolo trapezoidale ribaltabile aggregabile dim 140x61x72. Struttura portante interamente in acciaio, su 4 ruote con freno. Piano spessore 25 mm con bordo in ABS 2 mm arrotondato su tutti gli angoli con raggio 45 mm. Prodotto italiano di azienda certificata ISO 9001:2008",{"$f":"'ARREDO PER TAPPETO DIGITALE'!D7","v":0},427,{"$f":"D13*C13","v":0}]
["Arredo per Tappeto digitale","Tavolo aggregabile a sezione a 6 curve combinabile, struttura colore RAL 9006 realizzata in tubolare Ø 60mm.\nLa particolare forma progettata per essere combinata con altri tavoli del medesimo tipo, permette di creare in modo agevole\ngruppi con numero di partecipanti variabili, in linea con le esigenze didattiche.\nIl piano di lavoro spessore 20 mm è realizzato in melaminico antigraffio sagomato con spigoli arrotondati e bordato in ABS\nspessore 2 mm in linea con le normative vigenti in termini di sicurezza. Prodotto italiano di azienda certificata ISO 9001:2008",{"$f":"'ARREDO PER TAPPETO DIGITALE'!D8","v":0},161.65,0]
["Arredo per Tappeto digitale","Banchi modulari componibili per classe dinamica, struttura in metallo tubolare Ø 28mm con 2 ruote  frontali piroettanti che consentono di spostare agevolmente il banco e permettere di creare agevolmente delle configurazioni d’aula, Piano di lavoro a forma trapezoidale in Melaminico antigraffio sagomato  dimensione 98x45 cm, arrotondato risbordato in ABS. Piano disponibile in diversi colori.",{"$f":"'ARREDO PER TAPPETO DIGITALE'!D9","v":0},170.79999999999998,0]
["Arredo per Tappeto digitale","Tavolo Postazione docente ad angolo dim. cm 180x80x72 + Angolo tondo 90° + 100x80x72 ca. Struttura portante interamente in acciaio",{"$f":"'ARREDO PER TAPPETO DIGITALE'!D10","v":0},517.28,{"$f":"D16*C16","v":0}]
["Arredo per Tappeto digitale","Scrivania docente dim 180x80x72. Struttura portante interamente in acciaio. Piano spessore 25 mm con bordo in ABS 2 mm arrotondato su tutti gli angoli con raggio 45 mm",{"$f":"'ARREDO PER TAPPETO DIGITALE'!D11","v":0},517.28,{"$f":"D17*C17","v":0}]
["Arredo per Tappeto digitale","Armadio metallico 120x45x200h cm con ante scorrevoli. ",{"$f":"'ARREDO PER TAPPETO DIGITALE'!D16","v":0},222.04,0]
["Arredo per Tappeto digitale","Isola di lavoro a 3 posti 120° completa di divisori e porta CPU sospesi, piano spessore 28mm, dotato di fianchi coperti. Canalizzazione a norma per impianti, gamba piena pennellata in fibra legnosa nobilitata melaminica. Elettrificazione con prese multistandard e foro passacavo sul piano di lavoro. Lunghezza minima 208 cm, larghezza minima 120 cm.",{"$f":"'ARREDO PER TAPPETO DIGITALE'!D12","v":0},{"$f":"1454.24","v":1454.24},{"$f":"D19*C19","v":0}]
["Arredo per Tappeto digitale","Sedute monoscocca con struttura in robusto tubolare spessore 1.8mm verniciato a polveri epossidiche in colore grigio chiaro e scocca in in materiale termoplastico (polipropilene copolimero) diprima scelta, autoestinguente, con foro nello schienale per agevolare la presa. Classe 1 di resistenza al fuoco Dimensione cm 43,5 x 43,5 x h 44 .",{"$f":"'ARREDO PER TAPPETO DIGITALE'!D13","v":0},45.14,{"$f":"D20*C20","v":0}]
["Arredo per Tappeto digitale","Sedute con struttura in robusto tubolare ovale 30x15mm con traversi in tubo tondo diam. 18 mm verniciato a polveri epossidiche in colore grigio chiaro. Schienale e seduta imbottiti e rivestiti in tessuto ignifugo. Dimensione cm 43,5 x 43,5 x 42.",{"$f":"'ARREDO PER TAPPETO DIGITALE'!D14","v":0},41.48,{"$f":"D21*C21","v":0}]
["Arredo per Tappeto digitale","Poltroncina ergonomica imbottita, senza braccioli, su ruote",{"$f":"'ARREDO PER TAPPETO DIGITALE'!D15","v":0},112.24,0]
["Arredo per Tappeto digitale","Armadio metallico 120x45x200h cm con ante scorrevoli. 4+4 ripiani interni",{"$f":"'ARREDO PER TAPPETO DIGITALE'!D16","v":0},1034.56,0]
["Arredo per Tappeto digitale","Colonnina  esagonale su ruote di ricarica e stivaggio dall’alto per almeno 12 Tablet, 12 prese usb per alimentazione intelligente Tablet, interruttore generale, protezione vano con serratura",{"$f":"'ARREDO PER TAPPETO DIGITALE'!D17","v":0},624.64,0]
["Robotica Educativa","Kit Costruzione robot con  piu di 850 pezzi , inclusi N°4 motori, N°7 Sensori, 1 unità programmabile con la possibilità di connettere contemporanemente dodici dispositivi tra sensori e motori, N°1 Joystick, N°1 batteria, box contenitore. Disegni tecnici CAD di tutti i pezzi e licenza software proprietario per la modellazione 3D.",{"$f":"'ROBOTICA EDUCATIVA'!D6","v":0},573.4,0]
["Robotica Educativa","terreno di gioco per kit di robotica",{"$f":"'ROBOTICA EDUCATIVA'!D7","v":0},732,0]
["FABLab","Stampante 3D FFF con modulo wifi integrato",{"$f":"FABLAB!D8","v":0},2305.8000000000002,0]
["FABLab","SCANNER 3D PORTATILE \nVolume di scansione Min: 0.2m x 0.2m x 0.2m Max: 3m x 3m x 3m\nRange di lavoro Min: 0.35m Max: 3m\nProfondità immagine 240(w) x 320(h) px\nSpatial x/y resolution @ 0.5m 0.9mm\nDepth resolution @ 0.5m 1mm\nInterfaccia USB 2.0/USB 3.0\nFormato Dati 16 bit\nMassimo frame rate 30 fps\nMisure immagini 240(w) x 320(h) px.Comprensivo di formazione e installazione.",{"$f":"FABLAB!D10","v":0},641.72,{"$f":"D28*C28","v":0}]
["FABLab","Stampante 3D FFF con modulo CNC e telaio meccanico",{"$f":"FABLAB!D6","v":0},{"$f":"2940*1.22","v":3586.7999999999997},{"$f":"D29*C29","v":0}]
["FABLab","Stampante tipo  3D FDM di tipo Delta per stampa di oggetti con diametro 20 cm. Kit estrusore per lavorazione argilla incluso",{"$f":"FABLAB!D7","v":0},{"$f":"3170.78","v":3170.78},{"$f":"D30*C30","v":0}]
["FABLab","Stampante 3D FFF con modulo CNC e kit di estrusione per liquidi densi",{"$f":"FABLAB!D9","v":0},3696.6,0]
["Elettronica educativa","Simulatore di processo Arduino - Centrale idroelettrica \nSistema completo con interfaccia bluetooth e app per la gestione da tablet/smartphone",{"$f":"'ELETTRONICA EDUCATIVA'!D6","v":0},361.9984,0]
["Elettronica educativa","Simulatore di processo Arduino - Serra\nSistema completo con interfaccia bluetooth e app per la gestione da tablet/smartphone",{"$f":"'ELETTRONICA EDUCATIVA'!D7","v":0},361.9984,0]
["Elettronica educativa","Simulatore di processo - Impianto solare\nSistema completo con interfaccia bluetooth e app per la gestione da tablet/smartphone",{"$f":"'ELETTRONICA EDUCATIVA'!D8","v":0},361.9984,0]
["Elettronica educativa","Simulatore di processo - Sistema di trasmissione senza fili \nSistema completo con interfaccia bluetooth e app per la gestione da tablet/smartphone",{"$f":"'ELETTRONICA EDUCATIVA'!D9","v":0},398.00060000000002,0]
["Elettronica educativa","Interfaccia per esperienze in elettronica educativa, con software di programmazione intuitiva incluso",{"$f":"'ELETTRONICA EDUCATIVA'!D10","v":0},175.68,0]
["Elettronica educativa","Scenario cancello automatico per elettronica educativa, precablato e fornito montato, interfacciabile a PC o tablet",{"$f":"'ELETTRONICA EDUCATIVA'!D11","v":0},366,0]
["Elettronica educativa","Scenario tracciatore solare per elettronica educativa, precablato e fornito montato, interfacciabile a PC o tablet",{"$f":"'ELETTRONICA EDUCATIVA'!D12","v":0},359.9,0]
["Elettronica educativa","Scenario impianto eolico per elettronica educativa, precablato e fornito montato, interfacciabile a PC o tablet",{"$f":"'ELETTRONICA EDUCATIVA'!D13","v":0},434.32,0]
["STEM","Kit per lo studio delle energie rinnovabili per gli esperimenti sulla creazione di energia elettrica da fonti completamente sostenibili. Corredato da CD con unità didattiche per oltre 40 ore di lezione",{"$f":"STEM!D6","v":0},1778.76,0]
["STEM","Atelier creativo mobile STEM, con unità didattiche dedicate alle scienze e ai controller Arduino.Grazie all'approccio didattico basato sulle STEM, è possibile realizzare con Arduino gli strumenti di misura da utilizzare con i moduli scientifici. Oltre 130 esperimenti, manuale cartaceo passo-passo e contenuti multimediali dedicati agli esperimenti.",{"$f":"STEM!D7","v":0},3904,0]
["STEM","Strumento per lo sviluppo del pensiero scientifico,  dotato di display LCD, 4 sensori integrati (sensore di luminosità, suono, umidità e pressione dell’aria)  e connettività wireless per l'utilizzo in modalità collaborativa. Batteria ricaricabile con durata di almeno 14 giorni in modalità rilevamento e software di analisi dati ed elaborazione grafici matematici in licenza di istituto, con interfaccia personalizzabile in base al grado di studio.",{"$f":"STEM!D8","v":0},601.46,0]
["STEM","Pannello di lavoro multiposizione per kit didattici STEM. Realizzato in spessa lamiera forata e con diverse possibilità di orientamento. Corredato da CD contenente materiale didattico",{"$f":"STEM!D9","v":0},231.79999999999998,0]
["STEM","Kit Ingranaggi con componenti fissabili su pannello multiposizionale, con diverse possibilità di fissaggio per una massima estensione delle esperienze scientifiche. Corredato da un CD-ROM che include manuali, guide, esperienze di lavoro riproducibili, appunti per gli insegnanti necessari per gli esperimenti con i kit e altro ancora",{"$f":"STEM!D10","v":0},1283.44,0]
["STEM","Kit Macchine semplici con componenti fissabili su pannello multiposizionale, con diverse possibilità di fissaggio per una massima estensione delle esperienze scientifiche. Corredato da un CD-ROM che include manuali, guide, esperienze di lavoro riproducibili, appunti per gli insegnanti necessari per gli esperimenti con i kit e altro ancora",{"$f":"STEM!D11","v":0},846.68,0]
["STEM","Kit Collegamenti a barre con componenti fissabili su pannello multiposizionale, con diverse possibilità di fissaggio per una massima estensione delle esperienze scientifiche. Corredato da un CD-ROM che include manuali, guide, esperienze di lavoro riproducibili, appunti per gli insegnanti necessari per gli esperimenti con i kit e altro ancora",{"$f":"STEM!D12","v":0},939.4,0]
["STEM","Kit Attrito e piano inclinato con componenti fissabili su pannello multiposizionale, con diverse possibilità di fissaggio per una massima estensione delle esperienze scientifiche. Corredato da un CD-ROM che include manuali, guide, esperienze di lavoro riproducibili, appunti per gli insegnanti necessari per gli esperimenti con i kit e altro ancora",{"$f":"STEM!D13","v":0},766.16,0]
["STEM","Kit Energia potenziale ed energia cinetica con componenti fissabili su pannello multiposizionale, con diverse possibilità di fissaggio per una massima estensione delle esperienze scientifiche. Corredato da un CD-ROM che include manuali, guide, esperienze di lavoro riproducibili, appunti per gli insegnanti necessari per gli esperimenti con i kit e altro ancora",{"$f":"STEM!D14","v":0},385.52,0]
["STEM","Kit Puleggia con componenti fissabili su pannello multiposizionale, con diverse possibilità di fissaggio per una massima estensione delle esperienze scientifiche. Corredato da un CD-ROM che include manuali, guide, esperienze di lavoro riproducibili, appunti per gli insegnanti necessari per gli esperimenti con i kit e altro ancora",{"$f":"STEM!D15","v":0},751.52,0]
["STEM","Kit Sistemi di trasmissione con componenti fissabili su pannello multiposizionale, con diverse possibilità di fissaggio per una massima estensione delle esperienze scientifiche. Corredato da un CD-ROM che include manuali, guide, esperienze di lavoro riproducibili, appunti per gli insegnanti necessari per gli esperimenti con i kit e altro ancora",{"$f":"STEM!D16","v":0},1002.84,0]
["ICT PER IL TAPPETO DIGITALE","Schermo interattivo Full-HD 65”, 10 tocchi, pc i5 win 10 pro,Tastiera e mouse, Software Coding",{"$f":"'ICT TAPPETO DIGITALE'!D6","v":0},3591.68,0]
["ICT PER IL TAPPETO DIGITALE","Schermo interattivo Full-HD 65”, 10 tocchi, con licenza piattaforma Coding inclusa",{"$f":"'ICT TAPPETO DIGITALE'!D7","v":0},2461.96,0]
["ICT PER IL TAPPETO DIGITALE","Schermo interattivo Full HD 65\" 40 tocchi, con software autore, PC OPS Intel i3 Windows Pro e carrello integrati. Licenza per piattoforma cloud dedicata al Coding",{"$f":"'ICT TAPPETO DIGITALE'!D8","v":0},4382.24,0]
["ICT PER IL TAPPETO DIGITALE","Schermo interattivo Full HD 65\" 32 tocchi,con PC OPS Intel i3 Windows Pro e suite di programmi didattici del produttore. Licenza per piattaforma didattica multidisciplinare inclusa. ",{"$f":"'ICT TAPPETO DIGITALE'!D9","v":0},4538.3999999999996,0]
["ICT PER IL TAPPETO DIGITALE","LIM 87” formato 16:10 + Videoproiettore ad ottica ultracorta WXGA 3D ready + speaker amplificati 120W + corso di addestramento. 4 tocchi tecnologia Ottica Multitouch. Software di gestione del produttore. Utilizzabile per la certificazione AICA “CERT-LIM Interactive Teacher”.",{"$f":"'ICT TAPPETO DIGITALE'!D10","v":0},{"$f":"1739.72","v":1739.72},0]
["ICT PER IL TAPPETO DIGITALE","Carrello/Tavolo Mobile per utilizzare lo schermo interattivo sia in verticale che in orizzontale, come tavolo interattivo. Alzata elettrica.  ",{"$f":"'ICT TAPPETO DIGITALE'!D11","v":0},1472.54,0]
["ICT PER IL TAPPETO DIGITALE","Videoproiettore ad ottica ultracorta WXGA 3100 Ansi Lumen",{"$f":"'ICT TAPPETO DIGITALE'!D12","v":0},1124.8399999999999,0]
["ICT PER IL TAPPETO DIGITALE","Videoproiettore 3LCD ad ottica ultracorta WXGA 3000 Ansi Lumen 6000:1 - gestione energetica intelligente e fattore di zoom 1,4x",{"$f":"'ICT TAPPETO DIGITALE'!D13","v":0},1069.94,0]
["ICT PER IL TAPPETO DIGITALE","speaker amplificati 54 W",{"$f":"'ICT TAPPETO DIGITALE'!D14","v":0},46.36,0]
["ICT PER IL TAPPETO DIGITALE","Mobiletto di sicurezza a parete per notebook, in ferro verniciato a forno. Chiusura con chiave di sicurezza e predisposizione per due lucchetti (forniti). Vano porta alimentatore. Elettrificazione con 4 prese shuko. Cavo di Sicurezza Kensington.",{"$f":"'ICT TAPPETO DIGITALE'!D16","v":0},46.36,0]
["ICT PER IL TAPPETO DIGITALE","Document Camera 5 MPx con funzione di manipolazione oggetti 3D",{"$f":"'ICT TAPPETO DIGITALE'!D15","v":0},927.2,0]
["ICT PER IL TAPPETO DIGITALE","Servizio di installazione LIM/schermo interattivo",{"$f":"'ICT TAPPETO DIGITALE'!D17","v":0},183,0]
["ICT PER IL TAPPETO DIGITALE","Notebook 15,6\" Intel Core i5 di settima generazione, 4GB di RAM, disco 500GB, masterizzatore DVD, HDMI-VGA-Bluetooth, connettività Wireless Dual Band. Windows Pro 10 64 bit. Licenza di rete didattica del produttore. Firmware Coding. Servizio di garanzia 36 mesi del produttore con rimborso notebook in caso di guasto nel primo anno.",{"$f":"'ICT TAPPETO DIGITALE'!D18","v":0},746.64,0]
["ICT PER IL TAPPETO DIGITALE","Notebook 15,6\" Intel Core i3 di sesta generazione, 4GB di RAM, disco 500GB, masterizzatore DVD, HDMI-VGA-Bluetooth, connettività Wireless Dual Band. Windows Pro 10 64 bit. Licenza di rete didattica del produttore. Firmware Coding. Servizio di garanzia 36 mesi del produttore con rimborso notebook in caso di guasto nel primo anno.",{"$f":"'ICT TAPPETO DIGITALE'!D19","v":0},614.88,0]
["ICT PER IL TAPPETO DIGITALE","Notebook 13,3\" Intel Pentium serie U, 4GB di RAM, disco SSD 128GB, SD card reader, HDMI-Bluetooth, connettività Wireless Dual Band. Windows Pro 10 64 bit. Licenza di rete didattica del produttore. Firmware Coding. Servizio di garanzia 36 mesi del produttore con rimborso notebook in caso di guasto nel primo anno.",{"$f":"'ICT TAPPETO DIGITALE'!D20","v":0},600.24,0]
["ICT PER IL TAPPETO DIGITALE","Notebook ibrido PC/tablet 10,1” semirugged multi-touch, RAM 2 GB, SSD 64 GB, tastiera docking, Windows 10 Pro. Pila software didattici. Sensore temperatura e lente 30x. Penna stilo..",{"$f":"'ICT TAPPETO DIGITALE'!D21","v":0},402.59999999999997,0]
["STORYTELLING","Carrello interattivo per Storytelling multimediale, trasportabile su ruote, con display interattivo multitouch, scanner documentale CIS, interfaccia tangibile basata su tecnologie RFID, 1-wire, controllo pulsanti e matrice LED",{"$f":"STORYTELLING!D6","v":0},9516,0]
["ARTE E CREATIVITA'","Plotter da taglio di noto brand internazionale per materiale vinilico, PVC e materiale termotrasferibile. Luce di taglio 16 cm e larghezza area fino a 21,5 cm. Connettività USB, rilevatore crocino di stampa manuale integrato per abbinamento a stampante laser. Garanzia 3 anni del produttore",{"$f":"'ARTE E CREATIVITA'!D6","v":0},450.18,0]
["ARTE E CREATIVITA'","Plotter da taglio di noto brand internazionale per materiale vinilico, PVC e materiale termotrasferibile. Luce di taglio 16 cm e larghezza area fino a 21,5 cm. Connettività USB, rilevatore crocino di stampa manuale integrato per abbinamento a stampante laser. Garanzia 3 anni del produttore",{"$f":"'ARTE E CREATIVITA'!D7","v":0},584.38,0]
["ARTE E CREATIVITA'","Plotter da taglio di noto brand internazionale per materiale vinilico, PVC e materiale termotrasferibile. Luce di taglio 16 cm e larghezza area fino a 21,5 cm. Connettività USB, rilevatore crocino di stampa manuale integrato per abbinamento a stampante laser. Garanzia 3 anni del produttore",{"$f":"'ARTE E CREATIVITA'!D8","v":0},852.78,0]
["ARTE E CREATIVITA'","Tornio elettrico con seggiolino – diametro girello 290 mm. – diametro interno catino 410 mm. – ampia antina reclinabile porta attrezzi in legno – seggiolino regolabile in altezza fissato al corpo del tornio.",{"$f":"'ARTE E CREATIVITA'!D9","v":0},1756.8,0]
["ARTE E CREATIVITA'","Torniello da banco per decorazione costruito in acciaio verniciato con piano stampato girevole su sfera, deve permettere un’ottima stabilità sia in fase di decorazione di oggetti, sia nel caso si impieghi il torniello nella modellazione dell’argilla. ",{"$f":"'ARTE E CREATIVITA'!D10","v":0},202.51999999999998,0]
["ARTE E CREATIVITA'","Banco da lavoro con piano superiore in marmo - dimensioni mm. 2000x900 spessore mm. 30 con struttura in acciaio verniciato.",{"$f":"'ARTE E CREATIVITA'!D11","v":0},1556.72,0]
["ARTE E CREATIVITA'","Starter pack per lavorazione ceramica composto da: 8 attrezzi per la modellazione dell’argilla (n. 1 cavetto taglia argilla con manici legno, n. 1 stecca in legno, n. 1 raschietto in acciaio, n. 1 miretta, n. 1 attrezzo per torniante, n. 1 raschietto in legno, n. 1 rifinitore, n. 1 spugnetta=, due pacchi di argilla per modellazione da 25 Kg cadauno (colore bianco e rosso), un kit di 10 pennelli in pelo di bue  e nr. 2 vasetti da 200ml di smalto  per le attività di decorazione. ",{"$f":"'ARTE E CREATIVITA'!D12","v":0},285.48,0]
["ARTE E CREATIVITA'","Banco da lavoro per bambini. In legno di faggio. Lunghezza piano di lavoro esclusa morsa laterale  870 mm. Lunghezza piano di lavoro inclusa morsa laterale e testa della vite 1000 mm. Larghezza piano di lavoro esclusa morsa frontale  360 mm. Larghezza piano di lavoro inclusa morsa frontale e testa della vite 490 mm. Spessore piano  27 mm. Spessore piano cani  70 mm. Altezza faccia superiore piano (altezza di lavoro)  660 e 860 mm. Larghezza massima fissaggio morsa laterale  120 mm. Larghezza massima fissaggio morsa frontale  120 mm ",{"$f":"'ARTE E CREATIVITA'!D13","v":0},468.48,0]
["ARTE E CREATIVITA'","Set attrezzi per lavorazione del legno, adatto all'utilizzo da parte dei ragazzi. Composto da: Archetto da traforo per bambini, Mini Kataba specifica per tagli traverso, Martello da mobiliere,Mazzuolo in ottone,  Trapano ad ingranaggi, Set 4 succhielli da 2,3,4 e 5 mm, Livella in alluminio, Pialla da sgrosso piccola senza rompitruciolo, Set di 4 scalpelli corti, coltellino da intaglio, Set di 8 occhiali protettivi per ragazzi  ",{"$f":"'ARTE E CREATIVITA'!D14","v":0},512.4,0]
["ARTE E CREATIVITA'","Minicucina completa trasportabile. Minicucina completa trasportabile. Dim. L120xP64xH94 in modalità chiusa. Struttura in multistrato bilaminato.Piani di lavoro scorrevoli (con blocco di sicurezza in modalità aperta) in acciaio inox 18/10. Top in acciaio inox 18/10.Lavello a una vasca in acciaio inox 18/10. Rubunetto richiudibile a ribalta. Impianto idrico con carico/scarico acqua e pompa elettrica con autonomia 12Lt. Piano cottura ad induzione due fuochi. Forno elettrico ventilato con funzione a vapore, pirolitico, funzione pizza e 9 funzioni cottura. Cestello portastoviglie in acciaio da 60 cm.Cassetto portaposate. N.4 ruote da 10 CM con rivestimento in gomma e blocco. Impianto elettrico con interruttore magnetotermico di protezione.",{"$f":"'ARTE E CREATIVITA'!D15","v":0},8208.16,0]
["ARTE E CREATIVITA'","Kti completo di strumenti e attrezzature per la cucina mobile. Composto da:  Set pentole 10 pezzi per induzione, set 6 utensili di acciaio inossidabile solido, silicone senza BPA e resistente al calore fino a 200℃, set 6 coltelli rivestiti in ceramica, set 3 setacci in acciaio a maglia fine, servizio posate da 16 pezzi in acciaio, servizio piatti in porcellana bianco da 18 pezzi, Robot multifunzione 750W da 1,2 litri di capacità, Set di 6 contenitori di plastica con meccanismo di chiusura a 4 punti e guarnizioni in silicone",{"$f":"'ARTE E CREATIVITA'!D16","v":0},802.76,0]
[]
[null,"TOTALE FORNITURA",null,null,{"$f":"SUM(E12:E78)","v":0}]

{"sheet":"ARREDO PER TAPPETO DIGITALE","index":2,"n_rows":19,"n_cols":7,"rows_kept":19,"cut":false,"hidden":false,"merged":[[0,1,2,6]]}
[null,"ARREDO PER TAPPETO DIGITALE"]
[]
[]
[]
[null,"Tipologia","Descrizione","Qtà","Costo Unitario ","Costo Totale","Codice MEPA (con link a scheda su catalogo SIAD)"]
[null,"Arredi mobili e modulari","Tavolo ribaltabile aggregabile dim 140x70x72. Struttura portante interamente in acciaio, su 4 ruote con freno. Piano spessore 25 mm con bordo in ABS 2 mm arrotondato su tutti gli angoli con raggio 45 mm. Prodotto  italiano di azienda certificata ISO 9001:2008",0,{"$f":"331*1.22","v":403.82},{"$f":"D6*E6","v":0},"SIAD-ARR-026-140"]
[null,"Arredi mobili e modulari","Tavolo trapezoidale ribaltabile aggregabile dim 140x61x72. Struttura portante interamente in acciaio, su 4 ruote con freno. Piano spessore 25 mm con bordo in ABS 2 mm arrotondato su tutti gli angoli con raggio 45 mm. Prodotto italiano di azienda certificata ISO 9001:2008",0,{"$f":"350*1.22","v":427},0,"SIAD-ARR-027"]
[null,"Arredi mobili e modulari","Tavolo aggregabile a sezione a 6 curve combinabile, struttura colore RAL 9006 realizzata in tubolare Ø 60mm.\nLa particolare forma progettata per essere combinata con altri tavoli del medesimo tipo, permette di creare in modo agevole\ngruppi con numero di partecipanti variabili, in linea con le esigenze didattiche.\nIl piano di lavoro spessore 20 mm è realizzato in melaminico antigraffio sagomato con spigoli arrotondati e bordato in ABS\nspessore 2 mm in linea con le normative vigenti in termini di sicurezza. Prodotto italiano di azienda certificata ISO 9001:2008",0,{"$f":"132.5*1.22","v":161.65},0,"SIAD-ARR-028-71"]
[null,"Arredi mobili e modulari","Banchi modulari componibili per classe dinamica, struttura in metallo tubolare Ø 28mm con 2 ruote  frontali piroettanti che consentono di spostare agevolmente il banco e permettere di creare agevolmente delle configurazioni d’aula, Piano di lavoro a forma trapezoidale in Melaminico antigraffio sagomato  dimensione 98x45 cm, arrotondato risbordato in ABS. Piano disponibile in diversi colori.",0,{"$f":"140*1.22","v":170.79999999999998},0,"SIAD-ARR-015-71C"]
[null,"Scrivanie","Tavolo Postazione docente ad angolo dim. cm 180x80x72 + Angolo tondo 90° + 100x80x72 ca. Struttura portante interamente in acciaio",0,{"$f":"424*1.22","v":517.28},0,"SIAD-ARR-004"]
[null,"Scrivanie","Scrivania docente dim 180x80x72. Struttura portante interamente in acciaio. Piano spessore 25 mm con bordo in ABS 2 mm arrotondato su tutti gli angoli con raggio 45 mm",0,{"$f":"182*1.22","v":222.04},0,"SIAD-ARR-001-180"]
[null,"Scrivanie","Isola di lavoro a 3 posti 120° completa di divisori e porta CPU sospesi, piano spessore 28mm, dotato di fianchi coperti. Canalizzazione a norma per impianti, gamba piena pennellata in fibra legnosa nobilitata melaminica. Elettrificazione con prese multistandard e foro passacavo sul piano di lavoro. Lunghezza minima 208 cm, larghezza minima 120 cm.\n",0,{"$f":"1192*1.22","v":1454.24},0,"SIAD-ARR-005"]
[null,"Arredi mobili e modulari","Sedute monoscocca con struttura in robusto tubolare spessore 1.8mm verniciato a polveri epossidiche in colore grigio chiaro e scocca in in materiale termoplastico (polipropilene copolimero) diprima scelta, autoestinguente, con foro nello schienale per agevolare la presa. Classe 1 di resistenza al fuoco Dimensione cm 43,5 x 43,5 x h 44 .",0,{"$f":"37*1.22","v":45.14},0,"SIAD-ARR-058-5"]
[null,"Arredi mobili e modulari","Sedute con struttura in robusto tubolare ovale 30x15mm con traversi in tubo tondo diam. 18 mm verniciato a polveri epossidiche in colore grigio chiaro. Schienale e seduta imbottiti e rivestiti in tessuto ignifugo. Dimensione cm 43,5 x 43,5 x 42.",0,{"$f":"34*1.22","v":41.48},0,"SIAD-ARR-062"]
[null,"Arredi mobili e modulari","Poltroncina ergonomica imbottita, senza braccioli, su ruote",0,{"$f":"92*1.22","v":112.24},0,"SIAD-ARR-061"]
[null,"Armadi","Armadio metallico 120x45x200h cm dotato di sistema di conservazione a tre colonne con nr. 15 vassoi estraibili",0,{"$f":"848*1.22","v":1034.56},{"$f":"D16*E16","v":0},"SIAD-ARR-045"]
[null,"Armadi di ricarica e stoccaggio dispositivi","Colonnina  esagonale su ruote di ricarica e stivaggio dall’alto per almeno 12 Tablet, 12 prese usb per alimentazione intelligente Tablet, interruttore generale, protezione vano con serratura",0,{"$f":"512*1.22","v":624.64},{"$f":"D17*E17","v":0},"SIAD-ARR-023"]
[]
[null,null,"TOTALE ARREDI IVA INCLUSA",null,null,{"$f":"SUM(F6:F18)","v":0}]

{"sheet":"ROBOTICA EDUCATIVA","index":3,"n_rows":10,"n_cols":7,"rows_kept":10,"cut":false,"hidden":false,"merged":[[0,1,2,6]]}
[null,"ROBOTICA EDUCATIVA"]
[]
[]
[]
[null,"Tipologia","Descrizione","Qtà","Costo Unitario ","Costo Totale","Codice MEPA (con link a scheda su catalogo SIAD)"]
[null,"KIT ROBOTICA","Kit Costruzione robot con  piu di 850 pezzi , inclusi N°4 motori, N°7 Sensori, 1 unità programmabile con la possibilità di connettere contemporanemente dodici dispositivi tra sensori e motori, N°1 Joystick, N°1 batteria, box contenitore. Disegni tecnici CAD di tutti i pezzi e licenza software proprietario per la modellazione 3D.",0,{"$f":"470*1.22","v":573.4},{"$f":"D6*E6","v":0},"SIAD-VEX-01"]
[null,"Arredi mobili e modulari","terreno di gioco per kit di robotica",0,{"$f":"600*1.22","v":732},{"$f":"D7*E7","v":0},"FULLBNKS"]
[]
[]
[null,null,"TOTALE ROBOTICA IVA INCLUSA",null,null,{"$f":"SUM(F6:F9)","v":0}]

{"sheet":"FABLAB","index":4,"n_rows":13,"n_cols":7,"rows_kept":13,"cut":false,"hidden":false,"merged":[[0,1,2,6]]}
[null,"FABLAB\n(Stampanti 3d, scanner 3d, fresatrici, ecc)"]
[]
[]
[]
[null,"Tipologia","Descrizione","Qtà","Costo Unitario ","Costo Totale","Codice MEPA (con link a scheda su catalogo SIAD)"]
[null,"STAMPANTE 3D","Stampante 3D FFF con modulo per lavorazioni CNC. Telaio completamente metallico, con copertura di sicurezza. Area di lavoro massima 300 x 235 x 165 mm. Testine intercambiabili, connettività USB e LAN integrata. Possibilità di stampa con diversi materiali (ABS, PLA, PVA, HIPS, Nylon, Rubber, Timberfill, Woodlay, Flex, M-ABS, PET-G)",0,{"$f":"2940*1.22","v":3586.7999999999997},{"$f":"D6*E6","v":0},"SIAD-3DS-003"]
[null,"STAMPANTE 3D","Stampante tipo  3D FDM di tipo Delta per stampa di oggetti con diametro 20 cm. Kit estrusore per lavorazione argilla incluso",0,{"$f":"2599*1.22","v":3170.7799999999997},{"$f":"D7*E7","v":0},"SIAD-3DS-004"]
[null,"STAMPANTE 3D","Stampante 3D FFF con connettività wifi integrata. Area di stampa  25x20x20. Piano riscaldato rimuovibile, pannello touch a colori integrato, connettività USB. Stampa diretta da pen drive USB.",0,{"$f":"1890*1.22","v":2305.7999999999997},null,"SIAD-3DS-001"]
[null,"STAMPANTE 3D","Stampante 3D FFF con modulo per lavorazioni CNC ed estrusore per liquidi. Telaio completamente metallico, con copertura di sicurezza. Area di lavoro massima 300 x 235 x 165 mm. Testine intercambiabili, connettività USB e LAN integrata. Possibilità di stampa con diversi materiali (ABS, PLA, PVA, HIPS, Nylon, Rubber, Timberfill, Woodlay, Flex, M-ABS, PET-G)",0,{"$f":"3030*1.22","v":3696.6},0,"SIAD-3DS-005"]
[null,"Scanner 3D","SCANNER 3D PORTATILE: Volume di scansione Min: 0.2m x 0.2m x 0.2m Max: 3m x 3m x 3m\nRange di lavoro Min: 0.35m Max: 3m\nProfondità immagine 240(w) x 320(h) px\nSpatial x/y resolution @ 0.5m 0.9mm\nDepth resolution @ 0.5m 1mm\nInterfaccia USB 2.0/USB 3.0\nFormato Dati 16 bit\nMassimo frame rate 30 fps\nMisure immagini 240(w) x 320(h) px.Comprensivo di formazione e installazione.",0,{"$f":"526*1.22","v":641.72},0,"SIAD-3DS-002"]
[]
[]
[null,null,"TOTALE FABLAB IVA INCLUSA",null,null,{"$f":"SUM(F6:F12)","v":0}]

{"sheet":"ELETTRONICA EDUCATIVA","index":5,"n_rows":15,"n_cols":7,"rows_kept":15,"cut":false,"hidden":false,"merged":[[0,1,2,6]]}
[null,"ELETTRONICA EDUCATIVA"]
[]
[]
[]
[null,"Tipologia","Descrizione","Qtà","Costo Unitario ","Costo Totale","Codice MEPA (con link a scheda su catalogo SIAD)"]
[null,"Simulatori Arduino","Simulatore di processo Arduino - Centrale idroelettrica \nSistema completo con interfaccia bluetooth e app per la gestione da tablet/smartphone",0,{"$f":"296.72*1.22","v":361.9984},{"$f":"D6*E6","v":0},"SIAD-SCI-028"]
[null,"Simulatori Arduino","Simulatore di processo Arduino - Serra\nSistema completo con interfaccia bluetooth e app per la gestione da tablet/smartphone",0,{"$f":"296.72*1.22","v":361.9984},{"$f":"D7*E7","v":0},"SIAD-SCI-029"]
[null,"Simulatori Arduino","Simulatore di processo - Impianto solare\nSistema completo con interfaccia bluetooth e app per la gestione da tablet/smartphone",0,{"$f":"296.72*1.22","v":361.9984},0,"SIAD-SCI-030"]
[null,"Simulatori Arduino","Simulatore di processo - Sistema di trasmissione senza fili \nSistema completo con interfaccia bluetooth e app per la gestione da tablet/smartphone",0,{"$f":"326.23*1.22","v":398.00060000000002},0,"SIAD-SCI-031"]
[null,"Elettronica educativa","Interfaccia per esperienze in elettronica educativa, con software di programmazione intuitiva incluso",0,{"$f":"144*1.22","v":175.68},0,"SIAD-SCI-005"]
[null,"Elettronica educativa","Scenario cancello automatico per elettronica educativa, precablato e fornito montato, interfacciabile a PC o tablet",0,{"$f":"300*1.22","v":366},0,"SIAD-SCI-006"]
[null,"Elettronica educativa","Scenario tracciatore solare per elettronica educativa, precablato e fornito montato, interfacciabile a PC o tablet",0,{"$f":"295*1.22","v":359.9},0,"SIAD-SCI-007"]
[null,"Elettronica educativa","Scenario impianto eolico per elettronica educativa, precablato e fornito montato, interfacciabile a PC o tablet",0,{"$f":"356*1.22","v":434.32},0,"SIAD-SCI-008"]
[]
[null,null,"TOTALE ELETTRONICA EDUCATIVA IVA INCLUSA",null,null,{"$f":"SUM(F6:F14)","v":0}]

{"sheet":"STEM","index":6,"n_rows":18,"n_cols":7,"rows_kept":18,"cut":false,"hidden":false,"merged":[[0,1,2,6]]}
[null,"STEM\n(Soluzioni trasversali per lo studio di Scienze, Matematica, Fisica e Tecnologie)"]
[]
[]
[]
[null,"Tipologia","Descrizione","Qtà","Costo Unitario ","Costo Totale","Codice MEPA (con link a scheda su catalogo SIAD)"]
[null,"Kit Didattici","Kit per lo studio delle energie rinnovabili per gli esperimenti sulla creazione di energia elettrica da fonti completamente sostenibili. Corredato da CD con unità didattiche per oltre 40 ore di lezione",0,{"$f":"1458*1.22","v":1778.76},{"$f":"D6*E6","v":0},"SIAD-SCI-015"]
[null,"Kit Didattici","Atelier creativo mobile STEM, con unità didattiche dedicate alle scienze e ai controller Arduino.Grazie all'approccio didattico basato sulle STEM, è possibile realizzare con Arduino gli strumenti di misura da utilizzare con i moduli scientifici. Oltre 130 esperimenti, manuale cartaceo passo-passo e contenuti multimediali dedicati agli esperimenti.",0,{"$f":"3200*1.22","v":3904},{"$f":"D7*E7","v":0},"SIAD-MOBI-005"]
[null,"Strumenti","Strumento per lo sviluppo del pensiero scientifico,  dotato di display LCD, 4 sensori integrati (sensore di luminosità, suono, umidità e pressione dell’aria)  e connettività wireless per l'utilizzo in modalità collaborativa. Batteria ricaricabile con durata di almeno 14 giorni in modalità rilevamento e software di analisi dati ed elaborazione grafici matematici in licenza di istituto, con interfaccia personalizzabile in base al grado di studio.",0,{"$f":"493*1.22","v":601.46},{"$f":"D8*E8","v":0},"SIAD-SCI-017"]
[null,"Strumenti","Pannello di lavoro multiposizione per kit didattici STEM. Realizzato in spessa lamiera forata e con diverse possibilità di orientamento. Corredato da CD contenente materiale didattico",0,{"$f":"190*1.22","v":231.79999999999998},0,"SIAD-TCQ-ES1"]
[null,"Kit Didattici","Kit Ingranaggi con componenti fissabili su pannello multiposizionale, con diverse possibilità di fissaggio per una massima estensione delle esperienze scientifiche. Corredato da un CD-ROM che include manuali, guide, esperienze di lavoro riproducibili, appunti per gli insegnanti necessari per gli esperimenti con i kit e altro ancora",0,{"$f":"1052*1.22","v":1283.44},0,"SIAD-TCQ-ES13"]
[null,"Kit Didattici","Kit Macchine semplici con componenti fissabili su pannello multiposizionale, con diverse possibilità di fissaggio per una massima estensione delle esperienze scientifiche. Corredato da un CD-ROM che include manuali, guide, esperienze di lavoro riproducibili, appunti per gli insegnanti necessari per gli esperimenti con i kit e altro ancora",0,{"$f":"694*1.22","v":846.68},0,"SIAD-TCQ-ES14"]
[null,"Kit Didattici","Kit Collegamenti a barre con componenti fissabili su pannello multiposizionale, con diverse possibilità di fissaggio per una massima estensione delle esperienze scientifiche. Corredato da un CD-ROM che include manuali, guide, esperienze di lavoro riproducibili, appunti per gli insegnanti necessari per gli esperimenti con i kit e altro ancora",0,{"$f":"770*1.22","v":939.4},0,"SIAD-TCQ-ES15"]
[null,"Kit Didattici","Kit Attrito e piano inclinato con componenti fissabili su pannello multiposizionale, con diverse possibilità di fissaggio per una massima estensione delle esperienze scientifiche. Corredato da un CD-ROM che include manuali, guide, esperienze di lavoro riproducibili, appunti per gli insegnanti necessari per gli esperimenti con i kit e altro ancora",0,{"$f":"628*1.22","v":766.16},0,"SIAD-TCQ-ES8"]
[null,"Kit Didattici","Kit Energia potenziale ed energia cinetica con componenti fissabili su pannello multiposizionale, con diverse possibilità di fissaggio per una massima estensione delle esperienze scientifiche. Corredato da un CD-ROM che include manuali, guide, esperienze di lavoro riproducibili, appunti per gli insegnanti necessari per gli esperimenti con i kit e altro ancora",0,{"$f":"316*1.22","v":385.52},0,"SIAD-TCQ-ES9"]
[null,"Kit Didattici","Kit Puleggia con componenti fissabili su pannello multiposizionale, con diverse possibilità di fissaggio per una massima estensione delle esperienze scientifiche. Corredato da un CD-ROM che include manuali, guide, esperienze di lavoro riproducibili, appunti per gli insegnanti necessari per gli esperimenti con i kit e altro ancora",0,{"$f":"616*1.22","v":751.52},0,"SIAD-TCQ-ES10"]
[null,"Kit Didattici","Kit Sistemi di trasmissione con componenti fissabili su pannello multiposizionale, con diverse possibilità di fissaggio per una massima estensione delle esperienze scientifiche. Corredato da un CD-ROM che include manuali, guide, esperienze di lavoro riproducibili, appunti per gli insegnanti necessari per gli esperimenti con i kit e altro ancora",0,{"$f":"822*1.22","v":1002.84},0,"SIAD-TCQ-ES11"]
[]
[null,null,"TOTALE STEM IVA INCLUSA",null,null,{"$f":"SUM(F6:F17)","v":0}]

{"sheet":"ICT TAPPETO DIGITALE","index":7,"n_rows":25,"n_cols":7,"rows_kept":25,"cut":false,"hidden":false,"merged":[[0,1,2,6]]}
[null,"ICT PER IL TAPPETO DIGITALE\n(Lim, schermi interattivi, proiettori, PC/Notebook/tablet, Access Point, ecc.)"]
[]
[]
[]
[null,"Tipologia","Descrizione","Qtà","Costo Unitario ","Costo Totale","Codice MEPA (con link a scheda su catalogo SIAD)"]
[null,"SCHERMI INTERATTIVI","Schermo interattivo Full-HD 65”, 10 tocchi, pc i5 win 10 pro,Tastiera e mouse, Software Coding",0,{"$f":"2944*1.22","v":3591.68},{"$f":"D6*E6","v":0},"SIAD-MON-002"]
[null,"SCHERMO INTERATTIVO","Schermo interattivo Full-HD 65”, 10 tocchi, con licenza piattaforma Coding inclusa",0,{"$f":"2018*1.22","v":2461.96},0,"SIAD-MON-001"]
[null,"SCHERMI INTERATTIVI","Schermo interattivo Full HD 65\" 40 tocchi, con software autore, PC OPS Intel i3 Windows Pro e carrello integrati. Licenza per piattoforma cloud dedicata al Coding",0,{"$f":"3592*1.22","v":4382.24},0,"SIAD-MON-004"]
[null,null,"Schermo interattivo Full HD 65\" 32 tocchi,con PC OPS Intel i3 Windows Pro e suite di programmi didattici del produttore. Licenza per piattaforma didattica multidisciplinare inclusa. ",0,{"$f":"3720*1.22","v":4538.3999999999996},null,"SIAD-MON-005"]
[null,"LAVAGNA INTERATTIVA MULTIMEDIALE","LIM 89” formato 16:10 + Videoproiettore ad ottica ultracorta WXGA 3D ready.10 tocchi tecnologia Ottica DVT Multitouch. Software di gestione del produttore con funzioni collaborative. Videoproiettore DLP WXGA ad ottica ultracorta 3300 ANSI 18.000:1  con staffa a parete.",0,{"$f":"1426*1.22","v":1739.72},0,"SIAD-KIT-004"]
[null,"Accessori LIM e schermi","Carrello/Tavolo Mobile per utilizzare lo schermo interattivo sia in verticale che in orizzontale, come tavolo interattivo. Alzata elettrica.  ",0,{"$f":"1207*1.22","v":1472.54},{"$f":"D11*E11","v":0},"SIAD-ACL-004"]
[null,"VIDEOPROIETTORI","Videoproiettore 3LCD ad ottica ultracorta WXGA 3100 Ansi Lumen 15000:1",0,{"$f":"922*1.22","v":1124.8399999999999},0,"SIAD-VPD-002"]
[null,"VIDEOPROIETTORI","Videoproiettore 3LCD ad ottica ultracorta WXGA 3000 Ansi Lumen 6000:1 - gestione energetica intelligente e fattore di zoom 1,4x",0,{"$f":"877*1.22","v":1069.94},{"$f":"D13*E13","v":0},"SIAD-VPD-006"]
[null,"ACCESSORI LIM E SCHERMI","speaker amplificati 54 W",0,{"$f":"38*1.22","v":46.36},0,"SIAD-ACL-005"]
[null,"ACCESSORI LIM E SCHERMI","Document Camera 5 MPx con funzione di manipolazione oggetti 3D",0,927.2,0,"SIAD-ACL-001"]
[null,"ACCESSORI LIM E SCHERMI","Mobiletto di sicurezza a parete per notebook, in ferro verniciato a forno. Chiusura con chiave di sicurezza e predisposizione per due lucchetti (forniti). Vano porta alimentatore. Elettrificazione con 4 prese shuko. Cavo di Sicurezza Kensington.",0,{"$f":"150*1.22","v":183},null,"SIAD-ACL-003"]
[null,"INSTALLAZIONI","Servizio di installazione LIM ",0,{"$f":"150*1.22","v":183},0,"SIAD-INST-001"]
[null,"NOTEBOOK","Notebook 15,6\" Intel Core i5 di settima generazione, 4GB di RAM, disco 500GB, masterizzatore DVD, HDMI-VGA-Bluetooth, connettività Wireless Dual Band. Windows Pro 10 64 bit. Licenza di rete didattica del produttore. Firmware Coding. Servizio di garanzia 36 mesi del produttore con rimborso notebook in caso di guasto nel primo anno.",0,{"$f":"612*1.22","v":746.64},0,"SIAD-NBK-001"]
[null,"NOTEBOOK","Notebook 15,6\" Intel Core i3 di sesta generazione, 4GB di RAM, disco 500GB, masterizzatore DVD, HDMI-VGA-Bluetooth, connettività Wireless Dual Band. Windows Pro 10 64 bit. Licenza di rete didattica del produttore. Firmware Coding. Servizio di garanzia 36 mesi del produttore con rimborso notebook in caso di guasto nel primo anno.",0,{"$f":"504*1.22","v":614.88},0,"SIAD-NBK-002"]
[null,"Notebook","Notebook 13,3\" Intel Pentium serie U, 4GB di RAM, disco SSD 128GB, SD card reader, HDMI-Bluetooth, connettività Wireless Dual Band. Windows Pro 10 64 bit. Licenza di rete didattica del produttore. Firmware Coding. Servizio di garanzia 36 mesi del produttore con rimborso notebook in caso di guasto nel primo anno.",0,{"$f":"492*1.22","v":600.24},{"$f":"D20*E20","v":0},"SIAD-NBK-003"]
[null,"IBRIDO/TABLET","Notebook ibrido PC/tablet 10,1” semirugged multi-touch, RAM 2 GB, SSD 64 GB, tastiera docking, Windows 10 Pro. Pila software didattici. Sensore temperatura e lente 30x. Penna stilo..",0,{"$f":"330*1.22","v":402.59999999999997},0,"SIAD-NBK-004"]
[]
[]
[]
[null,null,"TOTALE ICT PER TAPPETO DIGITALE IVA INCLUSA",null,null,{"$f":"SUM(F6:F24)","v":0}]

{"sheet":"STORYTELLING","index":8,"n_rows":8,"n_cols":7,"rows_kept":8,"cut":false,"hidden":false,"merged":[[0,1,2,6]]}
[null,"STORYTELLING"]
[]
[]
[]
[null,"Tipologia","Descrizione","Qtà","Costo Unitario ","Costo Totale","Codice MEPA (con link a scheda su catalogo SIAD)"]
[null,"Storytelling multimediale, trasportabile su ruote","Carrello interattivo per Storytelling multimediale, trasportabile su ruote, con display interattivo multitouch, scanner documentale CIS, interfaccia tangibile basata su tecnologie RFID, 1-wire, controllo pulsanti e matrice LED",0,{"$f":"7800*1.22","v":9516},{"$f":"(D6*E6)","v":0},"SIAD-MOBI-003"]
[]
[null,null,"TOTALE STORYTELLING IVA INCLUSA",null,null,{"$f":"SUM(F6:F7)","v":0}]

{"sheet":"ARTE E CREATIVITA","index":9,"n_rows":19,"n_cols":7,"rows_kept":19,"cut":false,"hidden":false,"merged":[[0,1,2,6]]}
[null,"ARTE E CREATIVITA'\n(CERAMICA, LEGNO, CUCINA, GRAFICA DIGITALE)"]
[]
[]
[]
[null,"Tipologia","Descrizione","Qtà","Costo Unitario ","Costo Totale","Codice MEPA (con link a scheda su catalogo SIAD)"]
[null,"GRAFICA DIGITALE","Plotter da taglio di noto brand internazionale per materiale vinilico, PVC e materiale termotrasferibile. Luce di taglio 16 cm e larghezza area fino a 21,5 cm. Connettività USB, rilevatore crocino di stampa manuale integrato per abbinamento a stampante laser. Garanzia 3 anni del produttore",0,{"$f":"369*1.22","v":450.18},{"$f":"D6*E6","v":0},"SIAD-FAB-003"]
[null,"GRAFICA DIGITALE","Plotter da taglio di noto brand internazionale per materiale vinilico, PVC e materiale termotrasferibile. Luce di taglio 16 cm e larghezza area fino a 21,5 cm. Connettività USB, rilevatore crocino di stampa manuale integrato per abbinamento a stampante laser. Garanzia 3 anni del produttore",0,{"$f":"479*1.22","v":584.38},0,"SIAD-FAB-004"]
[null,"GRAFICA DIGITALE","Plotter da taglio di noto brand internazionale per materiale vinilico, PVC e materiale termotrasferibile. Luce di taglio 16 cm e larghezza area fino a 21,5 cm. Connettività USB, rilevatore crocino di stampa manuale integrato per abbinamento a stampante laser. Garanzia 3 anni del produttore",0,{"$f":"699*1.22","v":852.78},0,"SIAD-FAB-005"]
[null,"TORNI PER CERAMICA","Tornio elettrico con seggiolino – diametro girello 290 mm. – diametro interno catino 410 mm. – ampia antina reclinabile porta attrezzi in legno – seggiolino regolabile in altezza fissato al corpo del tornio.",0,{"$f":"1440*1.22","v":1756.8},{"$f":"D9*E9","v":0},"SIAD-FAB-007"]
[null,"TORNI PER CERAMICA","Torniello da banco per decorazione costruito in acciaio verniciato con piano stampato girevole su sfera, deve permettere un’ottima stabilità sia in fase di decorazione di oggetti, sia nel caso si impieghi il torniello nella modellazione dell’argilla. ",0,{"$f":"166*1.22","v":202.51999999999998},0,"SIAD-FAB-008"]
[null,null,"Banco da lavoro con piano superiore in marmo - dimensioni mm. 2000x900 spessore mm. 30 con struttura in acciaio verniciato.",0,{"$f":"1276*1.22","v":1556.72},0,"SIAD-FAB-009"]
[null,"LAVORAZIONE CERAMICA","Starter pack per lavorazione ceramica composto da: 8 attrezzi per la modellazione dell’argilla (n. 1 cavetto taglia argilla con manici legno, n. 1 stecca in legno, n. 1 raschietto in acciaio, n. 1 miretta, n. 1 attrezzo per torniante, n. 1 raschietto in legno, n. 1 rifinitore, n. 1 spugnetta=, due pacchi di argilla per modellazione da 25 Kg cadauno (colore bianco e rosso), un kit di 10 pennelli in pelo di bue  e nr. 2 vasetti da 200ml di smalto  per le attività di decorazione. ",0,{"$f":"234*1.22","v":285.48},0,"SIAD-FAB-010"]
[null,"BANCHI LAVORAZIONE LEGNO","Banco da lavoro per bambini. In legno di faggio. Lunghezza piano di lavoro esclusa morsa laterale  870 mm. Lunghezza piano di lavoro inclusa morsa laterale e testa della vite 1000 mm. Larghezza piano di lavoro esclusa morsa frontale  360 mm. Larghezza piano di lavoro inclusa morsa frontale e testa della vite 490 mm. Spessore piano  27 mm. Spessore piano cani  70 mm. Altezza faccia superiore piano (altezza di lavoro)  660 e 860 mm. Larghezza massima fissaggio morsa laterale  120 mm. Larghezza massima fissaggio morsa frontale  120 mm ",0,{"$f":"384*1.22","v":468.48},0,"SIAD-FAB-001"]
[null,"ATTREZZI LAVORAZIONE LEGNO","Set attrezzi per lavorazione del legno, adatto all'utilizzo da parte dei ragazzi. Composto da: Archetto da traforo per bambini, Mini Kataba specifica per tagli traverso, Martello da mobiliere,Mazzuolo in ottone,  Trapano ad ingranaggi, Set 4 succhielli da 2,3,4 e 5 mm, Livella in alluminio, Pialla da sgrosso piccola senza rompitruciolo, Set di 4 scalpelli corti, coltellino da intaglio, Set di 8 occhiali protettivi per ragazzi  ",0,{"$f":"420*1.22","v":512.4},0,"SIAD-FAB-002"]
[null,"MINICUCINA MOBILE","Minicucina completa trasportabile. Minicucina completa trasportabile. Dim. L120xP64xH94 in modalità chiusa. Struttura in multistrato bilaminato.Piani di lavoro scorrevoli (con blocco di sicurezza in modalità aperta) in acciaio inox 18/10. Top in acciaio inox 18/10.Lavello a una vasca in acciaio inox 18/10. Rubunetto richiudibile a ribalta. Impianto idrico con carico/scarico acqua e pompa elettrica con autonomia 12Lt. Piano cottura ad induzione due fuochi. Forno elettrico ventilato con funzione a vapore, pirolitico, funzione pizza e 9 funzioni cottura. Cestello portastoviglie in acciaio da 60 cm.Cassetto portaposate. N.4 ruote da 10 CM con rivestimento in gomma e blocco. Impianto elettrico con interruttore magnetotermico di protezione.",0,{"$f":"6728*1.22","v":8208.16},0,"SIAD-MOBI-004"]
[null,"ATTREZZI PER LAVORAZIONI CUCINA","Kti completo di strumenti e attrezzature per la cucina mobile. Composto da:  Set pentole 10 pezzi per induzione, set 6 utensili di acciaio inossidabile solido, silicone senza BPA e resistente al calore fino a 200℃, set 6 coltelli rivestiti in ceramica, set 3 setacci in acciaio a maglia fine, servizio posate da 16 pezzi in acciaio, servizio piatti in porcellana bianco da 18 pezzi, Robot multifunzione 750W da 1,2 litri di capacità, Set di 6 contenitori di plastica con meccanismo di chiusura a 4 punti e guarnizioni in silicone",0,{"$f":"658*1.22","v":802.76},0,"SIAD-FAB-006"]
[]
[]
[null,null,"TOTALE ARTE E CREATIVITA' IVA INCLUSA",null,null,{"$f":"SUM(F6:F18)","v":0}]